bitfinex/quotes_ETHUSD_20250731
["timestamp","ask_amount","ask_price","bid_price","bid_amount"]
[1753971070702,2.62867357,3804.2,3804.1,0.04]
[1753971070918,3.54417357,3804.2,3804.1,0.04]
[1753971071119,3.57537611,3804.2,3804.1,4.147]
[1753971071319,3.54417357,3804.2,3804.1,4.147]
[1753971071521,4.25862044,3804.2,3804.1,4.147]
[1753971071830,4.25862044,3804.2,3804.1,0.04]
[1753971072034,4.25862044,3804.2,3804.1,4.147]
[1753971072346,7.0571,3804.7,3804.1,4.147]
[1753971072494,0.55,3804.7,3804.1,0.04]
[1753971072699,2.62865703,3804.3,3804.1,0.04]
[1753971073130,0.4781,3804.2,3804.1,0.04]
[1753971073432,3.10677357,3804.2,3804.1,0.04]
[1753971073800,3.10677357,3804.2,3804.1,4.148]
[1753971074121,0.4781,3804.2,3804.1,4.148]
[1753971075041,0.4781,3804.2,3804.1,0.04]
[1753971075337,0.4781,3804.2,3804.1,4.148]
[1753971075535,3.10677357,3804.2,3804.1,4.148]
[1753971075831,0.4781,3804.2,3804.1,4.148]
[1753971076239,0.7853,3804.5,3804.1,4.148]
[1753971076400,7.5664,3804.7,3804.1,4.148]
[1753971076401,9.20732871,3804.7,3804.1,4.148]
[1753971076601,2.62832871,3804.7,3804.1,4.148]
[1753971076796,0.4777,3804.7,3804.1,4.148]
[1753971076998,0.4777,3805.0,3804.4,2.62847366]
[1753971077239,2.62835328,3804.7,3804.5,4.108]
[1753971077460,0.4777,3804.6,3804.5,4.108]
[1753971077660,0.4777,3804.6,3804.1,0.04]
[1753971077661,0.9505,3804.6,3804.1,0.04]
[1753971077822,0.4728,3804.5,3804.2,4.108]
[1753971078162,2.62888088,3803.9,3803.8,0.001]
[1753971078370,2.62888088,3803.9,3803.7,0.001]
[1753971078371,3.97784999,3803.8,3803.7,0.001]
[1753971078547,7.95955253,3803.8,3803.7,0.001]
[1753971078738,7.92834999,3803.8,3803.7,0.001]
[1753971078939,12.03534999,3803.8,3803.7,1e-08]
[1753971079234,14.62123365,3803.8,3803.7,1e-08]
[1753971079433,14.62123365,3803.8,3803.4,0.001]
[1753971079434,2.62915735,3803.5,3803.4,0.001]
[1753971079624,13.59125989,3803.5,3803.4,0.001]
[1753971079819,14.51055735,3803.5,3803.4,0.001]
[1753971080232,18.61755735,3803.5,3803.4,0.001]
[1753971080458,16.89380868,3803.5,3803.4,0.001]
[1753971082462,13.24185133,3803.5,3803.4,0.001]
[1753971082771,3.1312,3803.5,3803.4,0.001]
[1753971083259,7.29205989,3803.5,3803.4,0.001]
[1753971083426,8.01805735,3803.5,3803.4,0.001]
[1753971086314,8.26290465,3803.5,3803.4,0.001]
[1753971088418,8.26290465,3803.5,3802.1,0.04]
[1753971088419,3.18005628,3802.2,3802.1,0.04]
[1753971088645,6.49806191,3802.2,3802.1,0.04]
[1753971088936,7.10696191,3802.2,3802.1,0.04]
[1753971090024,3.1312,3802.2,3802.1,0.5134]
[1753971090382,4.1589,3802.2,3802.1,0.04]
[1753971090586,6.78895628,3802.2,3802.1,0.04]
[1753971091193,5.76125628,3802.2,3802.1,0.04]
[1753971091439,3.0,3802.2,3802.1,0.5134]
[1753971091608,3.1312,3802.2,3802.1,0.5134]
[1753971091835,3.0,3802.2,3802.1,0.5134]
[1753971092406,0.1312,3802.4,3802.1,0.7934]
[1753971092635,0.1312,3802.4,3802.2,0.7534]
[1753971092834,0.1312,3802.4,3802.1,0.04]
[1753971093049,0.1312,3802.4,3802.1,0.5134]
[1753971093349,0.1312,3802.4,3802.2,0.4734]
[1753971093712,0.1312,3802.4,3802.3,0.4734]
[1753971093913,0.1312,3802.5,3802.3,0.4734]
[1753971094119,0.1312,3802.5,3802.4,0.4734]
[1753971095465,0.1312,3802.5,3802.4,3.10331794]
[1753971095643,3.0,3803.1,3802.4,3.38329274]
[1753971095952,9.2112395,3803.4,3802.7,2.62964622]
[1753971096136,0.1312,3803.0,3802.7,2.62964622]
[1753971096447,0.1312,3803.0,3802.8,3.10304012]
[1753971096656,0.1312,3803.0,3802.9,2.62957216]
[1753971096849,0.2445586,3803.2,3803.1,2.62943388]
[1753971097050,0.1312,3803.6,3803.1,0.7534]
[1753971097254,3.37577136,3803.6,3803.0,2.62945778]
[1753971097424,0.24457136,3803.5,3803.2,2.62936357]
[1753971097623,0.24457136,3803.4,3803.3,0.4734]
[1753971097829,0.37577136,3803.6,3803.3,0.4734]
[1753971098028,0.24457136,3803.5,3803.3,0.4734]
[1753971098242,0.1312,3803.6,3802.9,2.62956249]
[1753971098243,0.24457136,3803.4,3802.9,2.62956249]
[1753971098445,0.37577136,3803.3,3803.0,0.7534]
[1753971098614,0.1312,3803.3,3803.0,0.7534]
[1753971098950,0.1312,3803.3,3802.8,4.109]
[1753971099155,2.62956249,3803.0,3802.7,4.2402]
[1753971099533,7.3594,3803.2,3802.7,4.109]
[1753971099728,0.1312,3802.9,3802.7,4.5824]
[1753971099967,0.1312,3802.9,3802.1,0.04]
[1753971099968,2.63005628,3802.2,3802.1,0.04]
[1753971100168,0.4777,3802.2,3802.1,0.04]
[1753971100359,0.6089,3802.2,3802.1,0.04]
[1753971100561,3.23895628,3802.2,3802.1,0.04]
[1753971101187,0.1312,3802.2,3802.1,0.04]
[1753971102211,2.76125628,3802.2,3802.1,0.04]
[1753971102500,4.73949502,3802.2,3802.1,0.04]
[1753971102645,2.10943874,3802.2,3802.1,0.04]
[1753971102842,3.23895628,3802.2,3802.1,0.04]
[1753971103049,7.29295882,3802.2,3802.1,0.04]
[1753971103363,7.26175628,3802.2,3802.1,0.04]
[1753971104151,6.78895628,3802.2,3802.1,0.04]
[1753971104505,8.07485628,3802.2,3802.1,0.04]
[1753971104704,10.66073994,3802.2,3802.1,0.041]
[1753971105284,14.76873994,3802.2,3802.1,0.041]
[1753971106700,14.76873994,3802.2,3802.1,1e-08]
[1753971108491,14.76873994,3802.2,3801.7,0.001]
[1753971108492,2.630333,3801.8,3801.7,0.001]
[1753971108705,27.79790502,3801.8,3801.7,0.001]
[1753971109020,28.66720248,3801.8,3801.7,1e-08]
[1753971109220,28.66718677,3801.8,3801.7,1e-08]
[1753971109424,2.6313712,3800.3,3800.2,4.109]
[1753971109630,2.63144045,3800.2,3800.1,0.04]
[1753971109789,6.45044299,3800.2,3800.1,0.04]
[1753971110130,10.99884045,3800.2,3800.1,0.04]
[1753971110313,11.54884045,3800.2,3800.1,0.04]
[1753971110514,14.13472411,3800.2,3800.1,0.04]
[1753971110830,14.56462411,3800.2,3800.1,0.04]
[1753971110994,6.99640969,3800.1,3800.0,1e-08]
[1753971111193,6.99703308,3799.2,3799.1,0.04]
[1753971111623,4.3649,3799.2,3799.1,0.04]
[1753971111819,3.132,3799.2,3799.1,0.04]
[1753971111990,3.132,3799.2,3799.1,0.4804]
[1753971112186,3.132,3799.2,3799.1,0.04]
[1753971112387,4.55284733,3799.2,3799.1,0.04]
[1753971112626,3.682,3799.2,3799.1,0.04]
[1753971112843,3.682,3799.2,3799.1,0.4804]
[1753971112844,3.132,3799.2,3799.1,0.4804]
[1753971113043,3.0,3799.2,3799.1,0.4804]
[1753971113206,3.0,3799.2,3799.1,0.04]
[1753971113394,3.03120254,3799.2,3799.1,0.04]
[1753971113588,3.50180254,3799.2,3799.1,0.04]
[1753971114025,3.0,3799.2,3799.1,0.04]
[1753971114624,4.111,3799.4,3799.1,0.4804]
[1753971114796,4.111,3799.4,3799.2,0.4404]
[1753971114996,3.55,3799.7,3799.3,0.7204]
[1753971114997,4.112,3799.7,3799.3,0.7204]
[1753971115231,0.03120254,3799.6,3799.1,0.04]
[1753971115427,3.0,3799.3,3799.1,0.04]
[1753971115674,0.55,3799.2,3799.1,0.04]
[1753971115971,8.1356,3799.2,3799.1,0.04]
[1753971116183,11.19763308,3799.2,3799.1,0.04]
[1753971116738,11.96153308,3799.2,3799.1,0.04]
[1753971117072,14.74501768,3799.2,3799.1,0.04]
[1753971117936,14.98895501,3799.2,3799.1,0.04]
[1753971118574,14.74501768,3799.2,3799.1,0.04]
[1753971120158,14.74501768,3799.2,3799.1,1e-08]
[1753971120494,2.63351943,3797.2,3796.0,0.11565559]
[1753971120646,12.76801943,3797.2,3796.2,0.4404]
[1753971120954,13.66851943,3797.2,3796.2,0.4404]
[1753971121638,12.76801943,3797.2,3796.1,0.04]
[1753971121848,12.76801943,3797.2,3796.4,0.4404]
[1753971122092,13.23861943,3797.2,3796.4,0.4404]
[1753971122402,15.48501997,3797.2,3796.4,0.4404]
[1753971122735,3.55,3797.2,3796.7,0.8089]
[1753971122892,3.0,3797.2,3797.1,0.7604]
[1753971123329,3.0,3797.2,3797.1,0.4804]
[1753971123633,16.4375262,3797.2,3797.1,1e-08]
[1753971123827,23.54610732,3797.2,3797.1,1e-08]
[1753971124013,19.42210732,3797.2,3797.1,1e-08]
[1753971124332,23.56310732,3797.2,3797.1,1e-08]
[1753971124632,14.72700309,3797.2,3797.1,1e-08]
[1753971124836,10.58500309,3797.2,3797.1,1e-08]
[1753971125139,7.05098366,3797.2,3797.1,1e-08]
[1753971125330,3.132,3797.2,3797.1,1e-08]
[1753971125518,0.132,3797.2,3797.1,0.72040001]
[1753971125890,0.132,3797.2,3797.1,0.44040001]
[1753971126247,17.79851943,3797.2,3797.1,0.00100001]
[1753971126466,21.36430309,3797.2,3797.1,0.00100001]
[1753971127042,21.36430309,3797.2,3797.1,1e-08]
[1753971127342,21.36430309,3797.2,3796.0,0.11565559]
[1753971127343,6.93741316,3796.2,3796.0,0.11565559]
[1753971127559,17.67541316,3796.2,3796.0,0.11565559]
[1753971127858,18.27801316,3796.2,3796.0,0.11565559]
[1753971128014,19.90899682,3796.2,3796.0,0.11565559]
[1753971128403,19.90899682,3796.2,3795.1,0.04]
[1753971128404,2.63490725,3795.2,3795.1,0.04]
[1753971128599,10.74140725,3795.2,3795.1,0.04]
[1753971128800,11.76200725,3795.2,3795.1,0.04]
[1753971129230,3.9485,3795.2,3795.1,0.04]
[1753971129414,3.132,3795.2,3795.1,0.04]
[1753971129622,3.132,3795.2,3795.1,0.4804]
[1753971130183,0.55,3795.9,3795.1,0.7604]
[1753971130449,0.132,3795.3,3795.2,0.4404]
[1753971130819,0.132,3795.3,3795.2,0.7204]
[1753971131025,0.132,3795.3,3795.2,0.4404]
[1753971131346,0.132,3795.3,3795.1,0.04]
[1753971131517,3.132,3795.3,3795.1,0.04]
[1753971131721,0.86432025,3795.3,3795.1,0.04]
[1753971132233,0.132,3795.3,3795.1,0.04]
[1753971132436,0.132,3795.4,3795.3,0.7735]
[1753971132638,0.132,3795.5,3795.4,2.63475892]
[1753971133010,6.594,3796.3,3795.4,0.7204]
[1753971133356,6.594,3796.3,3796.2,2.63421316]
[1753971133649,0.132,3796.5,3796.3,0.7849]
[1753971133819,0.132,3796.5,3796.4,3.35447438]
[1753971134032,0.132,3796.5,3796.4,0.7204]
[1753971134248,0.132,3796.5,3796.3,3.41902225]
[1753971134249,0.132,3796.5,3796.3,0.7849]
[1753971134447,0.132,3796.5,3796.4,3.35447438]
[1753971134719,0.8203,3797.8,3796.9,2.63365887]
[1753971134950,6.591,3797.7,3797.0,0.4404]
[1753971135173,6.591,3797.7,3797.1,2.63358879]
[1753971135455,6.591,3797.7,3796.5,0.8224]
[1753971135456,3.0,3797.6,3796.5,0.8224]
[1753971135619,0.132,3797.1,3796.6,0.4404]
[1753971135814,0.132,3797.1,3796.9,2.63366446]
[1753971136041,0.132,3797.1,3797.0,3.35405815]
[1753971136432,0.132,3797.3,3797.0,0.7204]
[1753971136622,0.132,3797.3,3797.2,2.63351943]
[1753971136821,0.132,3797.3,3797.2,3.35411943]
[1753971137051,0.132,3797.3,3797.2,0.7206]
[1753971137217,6.591,3798.1,3797.5,2.633249]
[1753971137427,1.7251,3799.0,3797.8,2.63310337]
[1753971137648,0.132,3798.3,3797.8,3.45550337]
[1753971137956,0.28261551,3798.9,3797.8,4.30810337]
[1753971137957,0.172,3798.9,3797.8,4.30810337]
[1753971138140,0.24261624,3798.8,3797.8,4.30810337]
[1753971138634,0.24261624,3798.8,3797.8,8.47410337]
[1753971139654,0.24261624,3798.7,3798.6,2.63254883]
[1753971139961,0.04,3798.9,3798.8,2.63241023]
[1753971140461,0.04,3798.9,3798.7,4.169]
[1753971140683,0.04,3798.9,3798.0,0.28]
[1753971140824,0.03120254,3798.8,3798.0,0.8054]
[1753971141171,0.35349025,3798.7,3798.1,4.171]
[1753971141318,0.002,3798.3,3798.1,4.171]
[1753971141544,0.002,3798.3,3798.2,2.93915433]
[1753971141871,0.002,3798.3,3798.2,3.04482607]
[1753971142068,0.24521819,3798.3,3798.2,3.04482607]
[1753971142595,0.24521819,3798.3,3798.2,4.17]
[1753971142795,0.48902288,3798.3,3798.2,6.80282607]
[1753971143242,0.48902288,3798.3,3798.2,4.17]
[1753971143983,0.48902288,3798.3,3798.2,3.99861931]
[1753971144281,0.48902288,3798.3,3798.2,6.37436704]
[1753971144785,0.48902288,3798.3,3798.2,7.78140731]
[1753971145087,0.48902288,3798.3,3798.2,4.03986634]
[1753971145241,0.48902288,3798.3,3798.2,7.92886634]
[1753971145441,0.48902288,3798.3,3798.2,3.75986634]
[1753971145677,0.48902288,3798.3,3798.2,7.37442607]
[1753971145864,0.48902288,3798.3,3798.2,4.301]
[1753971146064,0.48902288,3798.3,3798.2,4.3]
[1753971146378,0.4910275,3798.3,3798.2,4.168]
[1753971146566,0.4910275,3798.3,3798.2,6.93282607]
[1753971147085,0.4910275,3798.3,3798.2,4.3]
[1753971147443,0.24651375,3798.3,3798.2,4.168]
[1753971147722,0.24651375,3798.3,3798.1,2.63284673]
[1753971147882,0.48962709,3798.2,3797.5,0.7614]
[1753971148080,0.37681355,3798.1,3797.6,6.93318031]
[1753971148388,0.24481355,3798.0,3797.6,4.3]
[1753971148681,0.24481355,3798.0,3797.8,2.63304311]
[1753971148998,0.24481355,3797.9,3797.7,0.4406]
[1753971149184,0.002,3798.3,3797.7,2.91311281]
[1753971149393,0.24500712,3798.2,3797.8,0.132]
[1753971149561,0.24500712,3798.2,3798.0,0.132]
[1753971149898,0.24500712,3798.1,3797.5,0.7614]
[1753971150097,2.63309252,3797.9,3797.6,4.3]
[1753971150305,0.5957,3798.1,3797.6,4.3]
[1753971150607,2.6330378,3797.9,3797.6,4.3]
[1753971150756,2.63309804,3797.9,3797.6,4.3]
[1753971150957,3.22860545,3798.1,3797.6,4.3]
[1753971151189,0.49490254,3798.0,3797.5,0.7614]
[1753971151394,3.09666631,3798.0,3797.7,4.167]
[1753971151865,0.002,3798.3,3797.8,0.7206]
[1753971152053,0.002,3798.3,3797.7,4.167]
[1753971152054,0.002,3798.3,3798.0,2.63295948]
[1753971152249,0.002,3798.3,3798.1,6.79887442]
[1753971152457,0.002,3798.3,3798.1,4.166]
[1753971152688,0.002,3798.3,3798.2,2.76482607]
[1753971152899,0.002,3798.3,3798.2,1.6261]
[1753971153177,0.002,3798.3,3798.2,4.25892607]
[1753971153532,0.002,3798.3,3798.2,1.3461]
[1753971153887,0.002,3798.3,3798.2,3.97892607]
[1753971154084,0.002,3798.3,3798.2,4.64410949]
[1753971154288,0.002,3798.3,3798.2,5.36470949]
[1753971155997,0.002,3798.3,3798.2,4.64410949]
[1753971156198,0.002,3798.3,3798.2,7.70032607]
[1753971156729,0.002,3798.3,3798.2,0.9055]
[1753971157244,0.002,3798.3,3798.2,4.9335]
[1753971157610,0.002,3798.3,3798.2,7.56632607]
[1753971157996,0.002,3798.3,3798.2,7.69632607]
[1753971158200,0.002,3798.3,3798.2,9.44985425]
[1753971158945,0.002,3798.3,3798.2,18.30418345]
[1753971159811,0.002,3798.3,3798.2,9.44985425]
[1753971160012,0.002,3798.3,3798.2,5.29185425]
[1753971160217,0.002,3798.3,3798.2,7.69632607]
[1753971161679,0.002,3798.3,3798.2,8.13692607]
[1753971161891,0.002,3798.3,3798.2,8.41692607]
[1753971162044,0.002,3798.3,3798.2,7.69632607]
[1753971162491,0.04,3798.9,3798.8,2.63241023]
[1753971162693,0.04,3798.9,3798.8,7.55891023]
[1753971162981,0.04,3798.9,3798.8,7.69091023]
[1753971163654,0.04,3798.9,3798.8,8.72325042]
[1753971165255,0.04,3798.9,3798.8,9.44385042]
[1753971166157,0.5037,3799.9,3799.8,2.63171745]
[1753971166360,0.5037,3799.9,3799.8,6.78471745]
[1753971166763,0.9675,3799.9,3799.8,7.58681745]
[1753971167063,0.9675,3799.9,3799.8,6.78471745]
[1753971167263,0.04,3799.9,3799.8,6.78471745]
[1753971167497,0.04,3799.9,3799.8,6.91591745]
[1753971167701,0.04,3799.9,3799.8,2.76291745]
[1753971168001,0.5153,3799.9,3799.8,6.78471745]
[1753971168460,1.7885,3799.9,3798.9,0.7621]
[1753971168663,0.1312,3799.6,3799.1,2.63220236]
[1753971168982,2.63194336,3799.5,3799.2,4.154]
[1753971169318,2.63194336,3799.5,3798.7,0.132]
[1753971169319,0.132,3799.2,3798.7,0.132]
[1753971169607,1.7485,3799.1,3798.8,4.154]
[1753971169773,1.7485,3799.1,3798.9,4.154]
[1753971169774,1.0595,3799.0,3798.9,4.154]
[1753971171769,1.0595,3799.0,3798.9,4.15]
[1753971172073,1.0595,3799.0,3798.9,6.78234094]
[1753971172074,0.6073,3799.0,3798.9,6.78234094]
[1753971172306,0.132,3799.2,3798.9,5.09148195]
[1753971172505,0.1732,3799.9,3799.3,2.63203794]
[1753971172669,0.1732,3799.9,3799.6,2.63184915]
[1753971172866,0.1732,3799.9,3799.7,4.152]
[1753971173179,0.9275,3799.8,3799.7,4.152]
[1753971173387,3.0,3799.7,3799.0,0.8023]
[1753971173562,0.6065,3799.6,3799.1,4.15]
[1753971173767,0.4753,3799.5,3799.1,4.15]
[1753971173990,0.1312,3799.8,3799.4,2.63195253]
[1753971174181,0.6065,3799.8,3799.5,6.78290546]
[1753971174576,0.042,3799.9,3799.5,4.151]
[1753971174776,0.4753,3799.8,3799.5,6.78290854]
[1753971175006,0.4753,3799.8,3799.5,4.151]
[1753971175205,0.6254,3799.9,3799.5,6.78288004]
[1753971175397,0.4753,3799.8,3799.5,6.78288004]
[1753971175709,0.4753,3799.8,3799.7,2.63178672]
[1753971175912,0.4753,3799.8,3799.7,6.78078672]
[1753971176083,0.042,3799.9,3799.8,2.63171745]
[1753971176282,0.042,3799.9,3799.8,3.42921745]
[1753971176580,0.042,3799.9,3799.8,4.16621745]
[1753971176581,1e-08,3799.9,3799.8,4.16621745]
[1753971176817,1e-08,3799.9,3799.8,4.32373462]
[1753971177011,1e-08,3799.9,3799.8,4.29741745]
[1753971177220,1e-08,3799.9,3799.8,4.74095192]
[1753971177377,1e-08,3799.9,3799.8,4.00395192]
[1753971177929,1e-08,3799.9,3799.8,3.56041745]
[1753971178070,0.47530001,3799.9,3799.8,6.91291745]
[1753971178265,1e-08,3799.9,3799.8,6.91291745]
[1753971179629,1e-08,3799.9,3799.8,2.76291745]
[1753971179986,1e-08,3799.9,3799.8,6.91491745]
[1753971180186,0.47530001,3799.9,3799.8,4.2832]
[1753971180441,0.92750001,3799.9,3799.8,6.78371745]
[1753971180922,0.92750001,3799.9,3799.7,0.1312]
[1753971181134,0.17104001,3799.9,3799.8,4.151]
[1753971181288,1e-08,3799.9,3799.8,4.151]
[1753971181688,0.92750001,3799.9,3799.8,4.151]
[1753971181895,0.92750001,3799.9,3799.5,0.1312]
[1753971182137,3.69046856,3799.8,3799.6,4.151]
[1753971182428,3.1312,3799.8,3799.7,4.151]
[1753971182647,1e-08,3799.9,3799.7,4.151]
[1753971182648,1e-08,3799.9,3799.8,2.63171745]
[1753971182929,0.9275,3799.8,3799.7,4.151]
[1753971183426,0.4753,3799.8,3799.7,4.151]
[1753971183943,1e-08,3799.9,3799.7,4.151]
[1753971184731,1e-08,3799.9,3799.8,2.63171745]
[1753971185293,1e-08,3799.9,3799.8,3.58629339]
[1753971185485,1e-08,3799.9,3799.8,5.21429339]
[1753971186934,1e-08,3800.9,3800.8,2.63102504]
[1753971187099,1e-08,3800.9,3800.8,14.4257623]
[1753971187302,1e-08,3800.9,3800.8,15.72418636]
[1753971188225,1e-08,3800.9,3800.8,14.98718636]
[1753971188426,1e-08,3800.9,3800.8,15.72418636]
[1753971189611,1e-08,3800.9,3800.8,19.27418636]
[1753971191497,0.1312,3802.5,3800.8,19.27418636]
[1753971191498,0.1312,3802.5,3801.8,2.630333]
[1753971191707,0.002,3802.6,3801.8,7.9434663]
[1753971191708,0.4773,3802.6,3801.8,7.9434663]
[1753971192048,0.4753,3802.3,3801.8,7.9434663]
[1753971193108,0.4522,3802.5,3801.8,7.9434663]
[1753971193314,0.4753,3802.2,3801.8,7.9434663]
[1753971193704,0.002,3802.6,3801.8,0.3942333]
[1753971193911,0.9675,3801.9,3801.8,4.2742]
[1753971194120,0.9675,3801.9,3801.8,6.773333]
[1753971194321,0.9675,3801.9,3801.8,4.143]
[1753971194538,0.9675,3801.9,3801.7,0.1312]
[1753971194706,0.04,3801.9,3801.8,4.142]
[1753971195224,0.04,3801.9,3801.6,2.6304713]
[1753971195225,0.9675,3801.9,3801.5,0.1312]
[1753971195443,0.9275,3801.8,3801.6,4.144]
[1753971195639,2.67027372,3801.9,3801.6,4.144]
[1753971195816,0.9275,3801.7,3801.6,4.144]
[1753971196012,1.0587,3801.7,3801.1,0.1312]
[1753971196214,0.9281,3801.6,3800.5,6.323]
[1753971196419,1.84450254,3801.5,3800.9,0.1312]
[1753971196630,0.9281,3801.4,3801.0,4.142]
[1753971196830,0.9281,3801.4,3801.1,4.142]
[1753971197044,0.754,3801.5,3801.1,4.142]
[1753971197045,1.0593,3801.3,3801.1,4.142]
[1753971197216,0.1312,3801.3,3801.1,4.142]
[1753971197410,0.9281,3801.2,3801.1,4.142]
[1753971198156,3.5588746,3801.2,3801.1,4.141]
[1753971198320,4.2663161,3801.2,3801.1,4.141]
[1753971198520,10.8513161,3801.2,3801.1,4.141]
[1753971198820,0.8166,3800.9,3800.5,8.95419189]
[1753971199015,1.0593,3800.8,3800.6,4.14]
[1753971199221,0.9281,3800.7,3800.6,4.14]
[1753971199421,0.9281,3800.7,3800.5,6.323]
[1753971199728,0.1312,3800.8,3800.6,6.7721635]
[1753971200375,0.9281,3801.1,3801.0,2.6308866]
[1753971200652,0.9281,3801.1,3801.0,4.14]
[1753971200852,0.6075,3801.3,3801.1,2.63080587]
[1753971201059,0.583,3801.3,3801.2,4.14]
[1753971201221,0.1312,3801.3,3801.2,4.14]
[1753971201635,0.6075,3801.3,3801.2,4.14]
[1753971201853,1.0593,3801.3,3801.2,4.14]
[1753971203096,4.0593,3801.3,3800.6,0.1312]
[1753971203371,0.9281,3801.2,3800.7,4.139]
[1753971203576,0.9281,3801.1,3800.5,6.323]
[1753971203760,0.1312,3800.9,3800.6,6.76713786]
[1753971204072,0.9281,3800.8,3800.7,4.136]
[1753971204278,1.721,3800.8,3800.7,4.136]
[1753971204641,0.1312,3800.9,3800.7,4.136]
[1753971204978,0.9241,3801.2,3800.8,2.63102504]
[1753971205176,0.9281,3801.1,3800.9,4.135]
[1753971205324,0.9241,3801.2,3800.9,4.135]
[1753971205537,0.9281,3801.0,3800.9,4.135]
[1753971206262,0.9281,3801.0,3800.9,6.76595582]
[1753971206763,0.4763,3801.0,3800.9,6.76595582]
[1753971206972,0.4763,3801.0,3800.9,4.135]
[1753971207151,0.9281,3801.0,3800.5,6.323]
[1753971207334,0.1312,3800.8,3800.6,4.136]
[1753971207540,0.1312,3800.8,3800.7,2.63109427]
[1753971207856,0.583,3800.8,3800.6,4.136]
[1753971208051,0.4518,3800.7,3800.6,4.136]
[1753971208271,0.9281,3800.7,3800.6,6.7671635]
[1753971208455,0.9281,3800.7,3800.6,4.136]
[1753971209075,0.4763,3800.7,3800.6,6.7671635]
[1753971209285,0.4763,3800.7,3800.5,0.1322]
[1753971209458,6.8512635,3800.6,3800.5,0.001]
[1753971209659,7.86024801,3800.6,3800.5,0.001]
[1753971209997,8.33654801,3800.6,3800.5,0.001]
[1753971210199,8.88654801,3800.6,3800.5,0.001]
[1753971210502,5.70538451,3800.6,3800.5,0.001]
[1753971210696,4.8276,3800.6,3800.5,0.001]
[1753971211196,7.4587635,3800.6,3800.5,0.001]
[1753971211402,4.8276,3800.6,3800.5,0.001]
[1753971211756,8.03996604,3800.6,3800.5,0.001]
[1753971211992,8.0087635,3800.6,3800.5,0.001]
[1753971212293,9.73135339,3800.6,3800.5,0.001]
[1753971212716,6.41898989,3800.6,3800.5,0.001]
[1753971212862,4.8276,3800.6,3800.5,0.001]
[1753971213191,7.4587635,3800.6,3800.5,0.001]
[1753971213381,4.8276,3800.6,3800.5,0.001]
[1753971213961,4.3758,3800.6,3800.5,0.001]
[1753971215599,3.7683,3800.6,3800.5,2.63223273]
[1753971215804,4.2446,3800.6,3800.5,0.001]
[1753971215963,4.6964,3800.6,3800.5,0.001]
[1753971216364,8.07342779,3800.6,3800.5,0.001]
[1753971216775,15.20942779,3800.6,3800.5,0.001]
[1753971217508,12.57826429,3800.6,3800.5,0.001]
[1753971217709,12.02826429,3800.6,3800.5,0.001]
[1753971217874,12.15946429,3800.6,3800.5,0.001]
[1753971218205,0.1312,3800.6,3800.5,2.63223273]
[1753971218406,1.236,3801.0,3800.5,0.001]
[1753971218609,0.1312,3800.7,3800.6,2.6311635]
[1753971218809,0.7597,3801.5,3800.6,2.65747513]
[1753971219009,7.0613,3801.6,3801.2,2.63073939]
[1753971219210,0.1312,3801.4,3801.3,2.63067897]
[1753971219411,0.042,3801.9,3801.8,2.630333]
[1753971219610,0.042,3801.9,3801.8,6.760333]
[1753971220307,0.042,3801.9,3801.8,6.891533]
[1753971220509,0.042,3801.9,3801.8,7.59758549]
[1753971221091,0.042,3801.9,3801.8,8.05458549]
[1753971221330,0.042,3801.9,3801.8,8.33458549]
[1753971221697,0.042,3801.9,3801.8,7.59758549]
[1753971222608,0.042,3801.9,3801.8,8.33458549]
[1753971223423,0.042,3801.9,3801.8,7.59758549]
[1753971223593,0.042,3801.9,3801.8,8.33458549]
[1753971223977,0.042,3801.9,3801.8,10.88099949]
[1753971225179,0.042,3801.9,3801.8,10.13899949]
[1753971226537,0.042,3801.9,3801.8,10.84839949]
[1753971226683,1e-08,3801.9,3801.8,10.84839949]
[1753971227389,1e-08,3802.0,3801.9,3.41126381]
[1753971227730,0.04,3802.9,3802.8,2.62964131]
[1753971227883,0.04,3802.9,3802.8,6.91213772]
[1753971228080,0.04,3802.9,3802.8,7.59524131]
[1753971228813,0.04,3802.9,3802.8,6.88584131]
[1753971229058,0.04,3802.9,3802.8,2.76084131]
[1753971229200,0.04,3802.9,3802.8,6.88484131]
[1753971229410,0.04,3802.9,3802.8,4.124]
[1753971229411,0.4953,3802.9,3802.8,4.124]
[1753971229707,0.04,3802.9,3802.8,4.124]
[1753971230008,0.4953,3802.9,3802.8,4.124]
[1753971230408,0.4953,3802.9,3802.7,0.1312]
[1753971230409,2.62964131,3802.8,3802.7,0.1312]
[1753971230595,0.9041,3802.8,3802.7,4.124]
[1753971230795,1.3571,3802.8,3802.7,4.124]
[1753971231050,1.8124,3802.8,3802.3,2.76117575]
[1753971231318,0.04,3802.9,3802.6,2.62977962]
[1753971231489,0.1712,3802.9,3802.7,4.126]
[1753971231889,0.9083,3802.8,3802.7,4.126]
[1753971232122,0.1712,3802.9,3802.7,6.75571046]
[1753971232299,0.4553,3802.8,3802.7,4.126]
[1753971232503,0.9083,3802.8,3802.7,4.126]
[1753971233127,0.9083,3802.8,3802.1,0.8044]
[1753971233330,0.9083,3802.7,3801.8,3.364714]
[1753971233544,0.1312,3802.5,3802.0,2.76139437]
[1753971233701,3.8587,3802.9,3802.1,0.02630125]
[1753971233902,0.4553,3802.8,3802.3,0.1312]
[1753971234141,0.4553,3802.7,3802.3,0.1312]